bitfinex/quotes_SOLUSD_20250622
["timestamp","ask_amount","ask_price","bid_price","bid_amount"]
[1750635024454,26.40712237,132.54,132.46,7.14]
[1750635024655,83.28588589,132.54,132.46,7.14]
[1750635024847,2.8065,132.52,132.46,7.14]
[1750635025356,10.3655,132.52,132.46,7.14]
[1750635026064,18.57426352,132.52,132.46,7.14]
[1750635026255,24.22528378,132.52,132.46,7.14]
[1750635026583,7.54660025,132.51,132.46,7.14]
[1750635027162,33.54660025,132.51,132.46,4.1304682]
[1750635027359,33.54660025,132.51,132.41,0.69]
[1750635027360,8.20876352,132.5,132.42,18.64964886]
[1750635027570,26.0,132.47,132.41,2.9895318]
[1750635027763,21.45614886,132.49,132.41,2.9895318]
[1750635027764,26.0,132.46,132.41,2.9895318]
[1750635027965,26.0,132.46,132.39,18.64964886]
[1750635028471,39.55010507,132.46,132.39,18.64964886]
[1750635029266,6.00041946,132.46,132.4,0.69]
[1750635029453,16.00537912,132.49,132.42,26.69]
[1750635029642,10.35435886,132.49,132.42,26.69]
[1750635029970,24.59071491,132.49,132.41,26.0]
[1750635030342,30.24173517,132.49,132.41,26.0]
[1750635031555,49.1110838,132.49,132.41,26.0]
[1750635031763,49.1110838,132.49,132.38,0.69]
[1750635031764,26.0,132.45,132.38,0.69]
[1750635032467,29.79049132,132.45,132.38,0.69]
[1750635033554,7.55058894,132.44,132.38,0.69]
[1750635033758,7.55058894,132.44,132.37,44.64964886]
[1750635034168,10.35708894,132.44,132.37,44.64964886]
[1750635034366,10.35708894,132.44,132.36,7.82]
[1750635034561,10.35708894,132.44,132.36,7.12]
[1750635034562,26.0,132.41,132.36,7.12]
[1750635034965,28.8065,132.4,132.31,18.64964886]
[1750635035351,28.8065,132.4,132.31,44.64964886]
[1750635035553,7.55344059,132.39,132.31,26.0]
[1750635035768,7.55344059,132.39,132.3,7.82]
[1750635035959,21.38345102,132.39,132.31,18.64964886]
[1750635036148,21.38345102,132.39,132.3,7.82]
[1750635036549,34.64580559,132.39,132.3,7.82]
[1750635036847,18.64964886,132.38,132.3,7.82]
[1750635037655,7.55458185,132.37,132.3,7.82]
[1750635038882,52.44103648,132.37,132.3,7.12]
[1750635039061,26.0,132.33,132.24,0.7]
[1750635039255,26.0,132.32,132.23,7.12]
[1750635039578,26.0,132.31,132.23,51.76964886]
[1750635039877,2.8065,132.3,132.23,7.12]
[1750635040052,8.96026203,132.3,132.23,7.12]
[1750635040373,2.8065,132.3,132.23,33.12]
[1750635040557,23.86904598,132.32,132.26,26.0]
[1750635040749,15.66028246,132.32,132.27,0.7]
[1750635043170,23.21778198,132.32,132.25,0.7]
[1750635043352,23.21778198,132.32,132.24,18.64964886]
[1750635043665,23.21778198,132.32,132.24,44.64964886]
[1750635044177,15.66028246,132.32,132.25,0.7]
[1750635044378,23.21775902,132.32,132.25,0.7]
[1750635045979,23.21772373,132.32,132.25,0.7]
[1750635046185,68.11131502,132.32,132.23,7.82]
[1750635046674,76.32007854,132.32,132.23,7.82]
[1750635046979,26.0,132.28,132.23,7.12]
[1750635047149,26.0,132.28,132.19,49.64964886]
[1750635047351,2.8065,132.27,132.19,57.0]
[1750635047986,7.56086496,132.26,132.19,57.0]
[1750635048676,7.56086496,132.26,132.19,57.7]
[1750635049667,7.56086496,132.26,132.19,26.7]
[1750635053387,37.06868565,132.27,132.19,26.7]
[1750635053684,37.06868565,132.27,132.2,0.7]
[1750635053871,29.5082,132.27,132.2,0.7]
[1750635054073,3.5082,132.27,132.21,18.64964886]
[1750635054982,3.5082,132.27,132.22,0.7]
[1750635055173,11.06859221,132.27,132.22,0.7]
[1750635055684,11.06859221,132.27,132.16,38.0472]
[1750635055685,41.31964886,132.24,132.1,0.7]
[1750635055866,26.0,132.21,132.1,0.7]
[1750635056177,26.0,132.21,132.08,8.7932]
[1750635056178,10.85121784,132.2,132.12,0.7]
[1750635056381,18.41570484,132.2,132.12,0.7]
[1750635056556,18.41570484,132.2,132.13,18.64964886]
[1750635056761,18.41570484,132.2,132.14,0.7]
[1750635056990,10.85121784,132.2,132.14,0.7]
[1750635057188,10.85121784,132.2,132.16,26.7]
[1750635057368,22.25718075,132.2,132.16,26.7]
[1750635058375,22.25718075,132.2,132.16,0.7]
[1750635060661,22.25718075,132.2,132.15,26.0]
[1750635060865,22.25718075,132.2,132.16,0.7]
[1750635061895,14.69277176,132.2,132.16,0.7]
[1750635062567,14.69277176,132.2,132.17,18.64964886]
[1750635063091,3.84155392,132.2,132.18,0.7]
[1750635063296,56.39214818,132.28,132.21,0.7]
[1750635063297,10.85121784,132.23,132.21,0.7]
[1750635063482,10.85121784,132.23,132.2,26.0]
[1750635063796,10.85121784,132.23,132.2,26.71]
[1750635064381,7.56048961,132.27,132.21,0.71]
[1750635064699,10.85121784,132.26,132.2,26.71]
[1750635064992,18.41233215,132.26,132.2,26.71]
[1750635065996,22.12284021,132.26,132.2,26.71]
[1750635068386,41.02500261,132.26,132.2,26.71]
[1750635069396,22.12284021,132.26,132.2,26.71]
[1750635069977,22.12284021,132.26,132.2,0.71]
[1750635070578,41.02500261,132.26,132.2,0.71]
[1750635075087,22.12284021,132.26,132.21,0.71]
[1750635075807,14.5617259,132.26,132.22,27.88944886]
[1750635075976,3.71050806,132.26,132.23,0.71]
[1750635076178,28.7813454,132.32,132.24,0.71]
[1750635076381,49.21788613,132.32,132.24,0.71]
[1750635076589,54.7813454,132.32,132.24,0.71]
[1750635077509,21.22374173,132.32,132.26,0.71]
[1750635077811,26.95178996,132.32,132.26,0.71]
[1750635080945,26.95178996,132.32,132.25,44.64964886]
[1750635082635,26.95178996,132.32,132.25,45.35964886]
[1750635085336,26.0,132.3,132.24,7.1]
[1750635085540,26.0,132.26,132.2,0.71]
[1750635085745,50.21310813,132.27,132.19,9.1725]
[1750635086045,50.21310813,132.27,132.15,38.12]
[1750635086046,26.0,132.24,132.16,9.1725]
[1750635086227,33.559,132.24,132.16,9.1725]
[1750635086737,7.56258035,132.23,132.16,9.1725]
[1750635088536,35.63099648,132.23,132.16,9.1725]
[1750635088735,41.19445575,132.23,132.16,9.1725]
[1750635089234,9.16196525,132.22,132.16,9.1725]
[1750635090645,7.56372437,132.21,132.16,9.1725]
[1750635090960,7.56372437,132.21,132.16,9.8825]
[1750635092167,26.0,132.18,132.12,9.1599]
[1750635092365,35.16196525,132.18,132.12,9.1599]
[1750635092856,7.56601346,132.17,132.12,9.1599]
[1750635093060,7.56601346,132.17,132.12,9.8699]
[1750635093558,14.72542452,132.18,132.13,0.7]
[1750635093755,9.16196525,132.18,132.12,9.1599]
[1750635093966,7.56504241,132.19,132.12,35.1599]
[1750635094169,7.56504241,132.19,132.13,0.7]
[1750635095173,7.56429652,132.2,132.13,0.7]
[1750635095673,16.72626177,132.2,132.13,0.7]
[1750635096871,15.12418857,132.19,132.13,0.7]
[1750635097061,7.559,132.19,132.13,0.7]
[1750635097262,15.12389456,132.19,132.13,0.7]
[1750635098368,7.56489456,132.19,132.13,0.7]
[1750635099779,16.72685981,132.19,132.13,0.7]
[1750635104407,9.16196525,132.18,132.13,0.7]
[1750635104880,9.16196525,132.18,132.12,35.1599]
[1750635105195,9.16196525,132.18,132.12,35.8599]
[1750635105880,9.16196525,132.18,132.12,35.1599]
[1750635106063,9.16196525,132.18,132.13,0.7]
[1750635106374,39.12245927,132.21,132.14,18.64964886]
[1750635106588,9.16196525,132.21,132.15,0.7]
[1750635107100,9.16196525,132.21,132.17,26.0]
[1750635107283,7.56222423,132.24,132.19,7.1423]
[1750635107584,9.16196525,132.25,132.2,0.7]
[1750635108270,9.16196525,132.25,132.19,7.8423]
[1750635108461,16.72346278,132.25,132.19,7.8423]
[1750635109072,9.16196525,132.25,132.19,7.8423]
[1750635110278,16.72342207,132.25,132.19,7.8423]
[1750635111467,9.16196525,132.25,132.2,0.7]
[1750635111670,9.16196525,132.25,132.19,7.1423]
[1750635111978,9.16196525,132.25,132.2,0.7]
[1750635112697,9.16196525,132.25,132.21,0.7]
[1750635113191,9.16196525,132.25,132.2,18.64964886]
[1750635113569,9.16196525,132.25,132.21,0.7]
[1750635114178,43.45848674,132.27,132.2,18.64964886]
[1750635114492,43.45848674,132.27,132.21,0.7]
[1750635114795,52.62045199,132.27,132.21,0.7]
[1750635118674,19.06000544,132.27,132.21,0.7]
[1750635118864,16.722333,132.27,132.21,0.7]
[1750635120281,9.16196525,132.27,132.21,0.7]
[1750635120482,16.72231557,132.27,132.22,2.5273]
[1750635121173,9.16196525,132.27,132.22,2.5273]
[1750635121378,9.16196525,132.27,132.23,0.7]
[1750635121614,9.16196525,132.27,132.25,0.7]
[1750635121906,9.89804019,132.3,132.26,18.64964886]
[1750635122092,28.55616357,132.32,132.27,1.8525]
[1750635122274,19.39419832,132.32,132.3,0.7]
[1750635123000,3.73391586,132.32,132.3,0.7]
[1750635123196,15.79633305,132.35,132.3,0.7]
[1750635123798,15.79633305,132.35,132.29,7.6299]
[1750635123997,9.16196525,132.37,132.31,0.69]
[1750635124303,16.71658794,132.37,132.31,0.69]
[1750635126391,9.16196525,132.37,132.31,0.69]
[1750635126913,18.91666692,132.37,132.31,0.69]
[1750635127074,26.47127881,132.37,132.31,0.69]
[1750635128805,18.91666692,132.37,132.31,0.69]
[1750635129404,26.47126728,132.37,132.31,0.69]
[1750635130580,35.16196525,132.36,132.29,7.6299]
[1750635131010,43.70390942,132.36,132.29,7.6299]
[1750635131906,8.54194417,132.35,132.29,7.6299]
[1750635132108,9.16196525,132.34,132.29,7.6299]
[1750635132415,26.0,132.33,132.27,1.3226]
[1750635132617,16.71940176,132.32,132.27,1.3226]
[1750635137821,9.16196525,132.32,132.27,2.0126]
[1750635138125,9.16196525,132.32,132.27,1.0126]
[1750635138795,9.16196525,132.32,132.28,0.69]
[1750635139204,41.13585608,132.35,132.28,26.69]
[1750635139644,41.13585608,132.35,132.25,7.294]
[1750635139645,26.0,132.31,132.25,7.294]
[1750635139829,16.72054423,132.3,132.23,18.64964886]
[1750635140835,16.72054423,132.3,132.23,19.33964886]
[1750635141136,16.72054423,132.3,132.23,21.21594886]
[1750635142204,9.16196525,132.3,132.23,20.21594886]
[1750635142418,16.72060101,132.3,132.23,20.21594886]
[1750635142839,16.72060101,132.3,132.23,27.34594886]
[1750635144033,17.40060101,132.3,132.23,27.34594886]
[1750635145113,16.72060101,132.3,132.23,27.34594886]
[1750635145316,0.68,132.29,132.23,27.34594886]
[1750635145937,8.23925967,132.29,132.23,27.34594886]
[1750635147760,8.23925967,132.29,132.23,28.03594886]
[1750635147961,16.72077706,132.3,132.23,28.03594886]
[1750635148260,16.72077706,132.3,132.24,0.69]
[1750635148555,9.16196525,132.3,132.24,0.69]
[1750635153063,16.72063737,132.3,132.24,0.69]
[1750635153552,9.85196525,132.3,132.24,0.69]
[1750635153875,187.87848103,132.34,132.22,7.08]
[1750635153876,9.75470167,132.37,132.3,44.64964886]
[1750635154040,0.69,132.35,132.3,26.0]
[1750635154346,7.55474773,132.37,132.3,26.73]
[1750635154547,7.55474773,132.37,132.31,18.64964886]
[1750635154548,10.32047008,132.37,132.31,18.64964886]
[1750635154869,5.63162111,132.41,132.35,18.64964886]
[1750635155042,20.30242253,132.43,132.35,18.64964886]
[1750635155367,0.69,132.42,132.34,7.08]
[1750635155537,26.0,132.41,132.34,7.08]
[1750635155740,9.3464097,132.4,132.32,26.0]
[1750635156469,7.55344059,132.39,132.32,26.0]
[1750635159465,0.69,132.38,132.32,26.0]
[1750635159674,0.69,132.38,132.31,31.71]
[1750635159856,0.69,132.35,132.29,7.08]
[1750635160240,7.55629439,132.34,132.29,7.08]
[1750635160478,0.69,132.35,132.29,7.08]
[1750635160771,14.28803081,132.37,132.31,0.73]
[1750635160772,5.63162111,132.37,132.31,0.73]
[1750635160945,10.09512718,132.38,132.31,0.73]
[1750635161347,0.69,132.38,132.32,18.64964886]
[1750635161877,33.55357411,132.39,132.32,49.62964886]
[1750635162182,33.55357411,132.39,132.32,50.35964886]
[1750635162797,0.69,132.38,132.32,30.98]
[1750635163592,6.32162111,132.38,132.32,30.98]
[1750635164524,7.55458185,132.37,132.32,30.98]
[1750635164676,0.69,132.36,132.32,30.98]
[1750635164880,0.69,132.35,132.32,30.98]
[1750635166597,7.55522306,132.36,132.32,30.98]
[1750635166792,8.24522306,132.36,132.32,30.98]
[1750635167709,8.24522306,132.36,132.3,26.0]
[1750635168225,7.55522306,132.36,132.3,26.73]
[1750635170023,15.1347784,132.37,132.3,26.0]
[1750635170321,7.58,132.37,132.31,0.73]
[1750635170515,13.21162111,132.38,132.31,0.73]
[1750635170716,15.13412252,132.38,132.32,0.73]
[1750635171024,7.55412252,132.38,132.32,0.73]
[1750635171794,7.55412252,132.38,132.32,2.5099]
[1750635171999,42.21005692,132.39,132.33,0.73]
[1750635174524,34.6564097,132.39,132.33,0.73]
[1750635174731,42.20985135,132.39,132.33,0.73]
[1750635175231,42.89985135,132.39,132.33,0.73]
[1750635175411,0.69,132.38,132.32,1.7799]
[1750635176420,8.24420485,132.38,132.32,1.7799]
[1750635176831,8.24420485,132.38,132.32,2.5099]
[1750635177129,34.6564097,132.39,132.33,0.73]
[1750635177130,42.21004961,132.39,132.33,0.73]
[1750635181108,8.6564097,132.39,132.34,18.64964886]
[1750635181335,5.63162111,132.41,132.35,0.73]
[1750635181511,7.55193876,132.42,132.35,0.73]
[1750635181908,37.63159803,132.43,132.35,0.73]
[1750635182112,37.63159803,132.43,132.37,7.6719]
[1750635183053,23.75858064,132.43,132.38,1.8202]
[1750635183339,0.69,132.42,132.38,1.8202]
[1750635183539,31.30986328,132.43,132.38,1.8202]
[1750635183713,24.44858064,132.43,132.38,1.8202]
[1750635183913,31.99986965,132.43,132.38,1.8202]
[1750635184111,0.69,132.42,132.35,32.7467]
[1750635184370,9.3464097,132.42,132.35,32.7467]
[1750635184574,0.69,132.38,132.31,9.494]
[1750635184752,0.69,132.36,132.31,1.9166]
[1750635184952,35.3464097,132.37,132.31,1.9166]
[1750635185180,7.55515261,132.36,132.31,1.9166]
[1750635185347,8.24515261,132.36,132.31,1.9166]
[1750635187058,7.55515261,132.36,132.31,1.9166]
[1750635187265,0.69,132.35,132.31,1.9166]
[1750635189274,13.1862065,132.37,132.31,2.6166]
[1750635189574,7.55458539,132.37,132.31,2.6166]
[1750635189874,7.55458539,132.37,132.31,1.9166]
[1750635189875,8.24458539,132.37,132.31,1.9166]
[1750635195172,8.24458539,132.37,132.29,7.76]
[1750635195173,26.0,132.34,132.29,7.06]
[1750635195363,34.6564097,132.34,132.28,7.5774]
[1750635195583,35.3464097,132.34,132.28,7.5774]
[1750635196691,7.58,132.33,132.28,7.5774]
[1750635196870,7.55743651,132.32,132.27,1.8982]
[1750635197072,0.69,132.31,132.27,1.8982]
[1750635197571,7.55743651,132.32,132.27,2.5982]
[1750635198693,8.24743651,132.32,132.27,2.5982]
[1750635199206,8.24743651,132.32,132.27,1.8982]
[1750635200078,8.24822684,132.31,132.27,1.8982]
[1750635200483,0.69,132.3,132.25,7.1045]
[1750635200805,16.90463654,132.31,132.25,7.1045]
[1750635200973,0.69,132.3,132.24,8.8068]
[1750635201173,0.69,132.29,132.24,8.8068]
[1750635201391,21.86803081,132.3,132.24,8.8068]
[1750635201700,0.69,132.29,132.24,1.7468]
[1750635202001,21.86803081,132.3,132.24,1.7468]
[1750635202304,30.11685571,132.3,132.24,1.7468]
[1750635202770,29.42685571,132.3,132.24,2.4468]
[1750635203171,29.42685571,132.3,132.24,28.4468]
[1750635203592,21.86803081,132.3,132.24,28.4468]
[1750635204493,13.21162111,132.3,132.27,0.7]
[1750635204693,7.58,132.3,132.27,0.7]
[1750635204874,13.87924632,132.32,132.27,0.7]
[1750635205074,5.63162111,132.32,132.27,0.7]
[1750635205476,56.11448996,132.34,132.27,0.7]
[1750635206773,30.11448996,132.34,132.27,0.7]
[1750635206984,24.48286885,132.34,132.27,0.7]
[1750635207180,30.11448996,132.34,132.27,0.7]
[1750635210502,0.69,132.33,132.26,7.151]
[1750635210701,8.24743651,132.32,132.26,7.151]
[1750635211616,15.13687442,132.33,132.27,0.7]
[1750635214515,26.0,132.3,132.26,7.151]
[1750635214710,0.69,132.29,132.24,1.7468]
[1750635215221,7.55915035,132.29,132.24,1.7468]
[1750635215511,0.69,132.28,132.24,1.7468]
[1750635218131,8.24981844,132.28,132.24,1.7468]
[1750635218921,0.69,132.27,132.24,1.7468]
[1750635219826,8.25039822,132.27,132.24,1.7468]
[1750635220123,0.69,132.27,132.24,1.7468]
[1750635220515,8.25031767,132.27,132.24,1.7468]
[1750635220900,14.15431655,132.27,132.24,1.7468]
[1750635221302,5.90399888,132.27,132.24,1.7468]
[1750635221517,8.24924199,132.29,132.24,1.7468]
[1750635222641,47.85405242,132.3,132.24,2.4368]
[1750635223024,53.94066167,132.3,132.24,2.4368]
[1750635223223,54.63066167,132.3,132.24,2.4368]
[1750635223640,54.63066167,132.3,132.24,1.7468]
[1750635223948,0.69,132.29,132.24,1.7468]
[1750635224115,0.69,132.28,132.24,1.7468]
[1750635224443,0.69,132.26,132.24,1.7468]
[1750635225652,0.69,132.27,132.24,1.7468]
[1750635226140,8.2497218,132.28,132.24,1.7468]
[1750635227347,0.69,132.28,132.24,1.7468]
[1750635227730,8.24986035,132.28,132.24,1.7468]
[1750635228424,0.69,132.27,132.24,1.7468]
[1750635229752,8.25034579,132.27,132.24,1.7468]
[1750635230445,0.69,132.27,132.24,1.7468]
[1750635230644,7.55997431,132.28,132.24,1.7468]
[1750635230852,8.24997431,132.28,132.24,1.7468]
[1750635231030,0.69,132.28,132.24,1.7468]
[1750635231939,14.29525019,132.29,132.25,0.69]
[1750635232256,8.6564097,132.29,132.25,0.69]
[1750635232930,15.43576055,132.3,132.25,0.69]
[1750635233724,15.43576055,132.3,132.24,1.7468]
[1750635233953,6.08660925,132.3,132.25,0.69]
[1750635234151,7.5586617,132.3,132.25,0.69]
[1750635234359,8.24824076,132.31,132.25,0.69]
[1750635234857,0.69,132.27,132.22,7.421]
[1750635235041,26.69,132.26,132.2,1.8539]
[1750635235240,0.69,132.25,132.17,1.8539]
[1750635235552,0.69,132.2,132.17,1.8539]
[1750635236328,8.25449243,132.2,132.14,8.9139]
[1750635236742,16.91090213,132.2,132.14,1.8539]
[1750635237866,35.82164343,132.2,132.14,1.8539]
[1750635238039,41.46452047,132.2,132.14,1.8539]
[1750635238235,18.64964886,132.19,132.14,1.8539]
[1750635238460,0.69,132.18,132.14,1.8539]
[1750635239357,7.56601346,132.17,132.14,1.8539]
[1750635239562,0.69,132.16,132.12,7.7074]
[1750635240168,7.56601346,132.17,132.12,7.7074]
[1750635240350,13.2088905,132.17,132.12,7.7074]
[1750635240546,31.64287704,132.18,132.12,7.7074]
[1750635240744,26.0,132.18,132.13,0.69]
[1750635240951,21.80153914,132.2,132.13,0.69]
[1750635240952,53.44441618,132.2,132.13,0.69]
[1750635241150,12.45238784,132.2,132.13,0.69]
[1750635241643,3.79597814,132.2,132.14,18.64964886]
[1750635241964,23.64022009,132.24,132.17,26.69]
[1750635242149,23.64022009,132.24,132.18,7.6886]
[1750635242150,8.6564097,132.24,132.18,7.6886]
[1750635242348,13.19563097,132.26,132.19,0.69]
[1750635242659,8.25097188,132.26,132.19,0.69]
[1750635243268,12.10188369,132.26,132.19,0.69]
[1750635245056,20.75829339,132.26,132.19,0.69]
[1750635246868,20.75819364,132.26,132.19,0.69]
[1750635248665,9.3464097,132.25,132.18,7.6886]
[1750635249572,8.25200846,132.24,132.18,7.6886]
[1750635251079,0.69,132.24,132.18,7.6886]
[1750635251439,8.27,132.24,132.18,7.6886]
[1750635251645,0.69,132.24,132.18,7.6886]
[1750635252090,8.25203855,132.24,132.18,7.6886]
[1750635252476,16.90844825,132.24,132.18,7.6886]
[1750635252992,16.21844825,132.24,132.18,8.4086]
[1750635253389,8.6564097,132.24,132.18,8.4086]
[1750635254075,9.4855709,132.26,132.2,0.72]
[1750635254275,3.85091181,132.26,132.2,0.72]
[1750635254592,7.56064204,132.27,132.2,0.72]
[1750635255399,11.39630763,132.27,132.2,0.72]
[1750635255580,17.03096672,132.27,132.2,0.72]
[1750635256471,17.03064622,132.27,132.21,2.5619]
[1750635258190,17.72064622,132.27,132.21,1.8419]
[1750635258386,26.37705592,132.27,132.21,1.8419]
[1750635259617,0.69,132.26,132.21,1.8419]
[1750635259806,7.56115251,132.26,132.21,1.8419]
[1750635260009,0.69,132.25,132.21,1.8419]
[1750635261202,8.25115251,132.26,132.21,1.8419]
[1750635262324,0.69,132.25,132.21,1.8419]
[1750635264194,25.68721061,132.27,132.21,1.8419]
[1750635264393,26.37721061,132.27,132.21,1.8419]
[1750635264597,25.68721061,132.27,132.21,1.8419]
[1750635264891,0.69,132.26,132.21,1.8419]
[1750635265090,25.68721061,132.27,132.21,1.8419]
[1750635265501,7.56143667,132.25,132.21,1.8419]
[1750635265705,8.25143667,132.25,132.21,1.8419]
[1750635266717,7.56143667,132.25,132.21,1.8419]
[1750635266923,7.56108477,132.26,132.21,2.5619]
[1750635267326,8.25108477,132.26,132.21,2.5619]
[1750635267811,8.25108477,132.26,132.21,1.8419]
[1750635268334,7.56108477,132.26,132.21,1.8419]
[1750635268537,0.69,132.24,132.21,1.8419]
[1750635268743,9.3464097,132.24,132.21,1.8419]
[1750635268920,0.69,132.23,132.21,1.8419]
[1750635269522,8.25277989,132.23,132.21,1.8419]
[1750635269841,8.6564097,132.24,132.21,1.8419]
[1750635270617,30.13704395,132.26,132.21,2.5619]
[1750635271142,30.82704395,132.26,132.21,2.5619]
[1750635271940,0.69,132.25,132.21,1.8419]
[1750635272241,23.26593613,132.26,132.21,2.5619]
[1750635272423,23.26593613,132.26,132.21,1.8419]
[1750635272424,23.24688444,132.26,132.21,1.8419]
[1750635272626,0.69,132.25,132.21,1.8419]
[1750635272831,31.21329414,132.26,132.21,1.8419]
[1750635273347,0.69,132.25,132.21,1.8419]
[1750635273648,7.56200846,132.24,132.21,1.8419]
[1750635273941,8.25200846,132.24,132.21,1.8419]
[1750635275137,0.69,132.24,132.21,1.8419]
[1750635275731,8.25160091,132.25,132.21,1.8419]
[1750635277145,7.56258035,132.23,132.18,7.6886]
[1750635277444,0.69,132.22,132.18,7.6886]
[1750635278431,21.86577488,132.23,132.19,0.73]
[1750635278959,14.30319453,132.23,132.18,7.6886]
[1750635279272,14.30319453,132.23,132.19,0.73]
[1750635280034,14.30319453,132.23,132.19,2.5109]
[1750635280351,14.30319453,132.23,132.2,0.73]
[1750635280540,8.6564097,132.23,132.2,0.73]
[1750635281641,13.20837457,132.25,132.2,0.73]
[1750635281833,8.25158974,132.25,132.19,1.7809]
[1750635282158,16.90799944,132.25,132.19,1.7809]
[1750635283361,22.56854201,132.25,132.19,1.7809]
[1750635283560,22.56854201,132.25,132.19,2.5109]
[1750635283851,14.31695227,132.25,132.19,1.7809]
[1750635284069,16.21791112,132.25,132.2,0.73]
[1750635284271,21.87845369,132.25,132.19,1.7809]
[1750635284437,14.31695227,132.24,132.19,1.7809]
[1750635284749,6.35054257,132.23,132.19,1.7809]
[1750635285236,5.66054257,132.22,132.19,1.7809]
[1750635285755,31.93610357,132.21,132.16,1.8813]
[1750635285957,6.35054257,132.2,132.16,1.8813]
[1750635286343,8.25467009,132.2,132.16,1.8813]
[1750635286545,13.91521266,132.2,132.16,1.8813]
[1750635287039,13.22521266,132.2,132.16,2.6113]
[1750635287238,7.56467009,132.2,132.16,2.6113]
[1750635288134,13.91521266,132.2,132.16,1.8813]
[1750635289230,8.25467009,132.2,132.16,1.8813]
[1750635291558,7.56467009,132.2,132.12,26.0]
[1750635291743,48.57436396,132.2,132.11,0.73]
[1750635292061,8.6564097,132.19,132.12,18.64964886]
[1750635292240,8.6564097,132.19,132.13,0.73]
[1750635292440,14.31695227,132.19,132.13,0.73]
[1750635293159,21.88220038,132.19,132.13,0.73]
[1750635294664,0.69,132.18,132.1,9.2905]
[1750635294969,0.69,132.16,132.1,9.2905]
[1750635295350,18.695561,132.16,132.1,9.2905]
[1750635295547,24.35610357,132.16,132.1,9.2905]
[1750635297354,8.25715853,132.15,132.1,9.2905]
[1750635297544,0.69,132.14,132.1,9.2905]
[1750635297965,6.59921742,132.14,132.1,9.2905]
[1750635299764,7.56830394,132.13,132.1,7.17613811]
[1750635299966,7.56830394,132.13,132.09,7.77]
[1750635304649,8.24830394,132.13,132.09,7.77]
[1750635304844,0.68,132.12,132.06,9.733]
[1750635305072,9.3364097,132.12,132.06,9.733]
[1750635305458,14.99695227,132.12,132.06,9.733]
[1750635305768,7.5694497,132.11,132.06,9.733]
[1750635305972,7.5694497,132.11,132.06,9.033]
[1750635306172,7.5694497,132.11,132.07,0.7]
[1750635306473,21.88583435,132.12,132.06,9.733]
[1750635306771,16.90529178,132.12,132.06,9.733]
[1750635309063,16.90529178,132.12,132.06,7.9878]
[1750635309271,16.90529178,132.12,132.06,0.7]
[1750635311573,26.25444308,132.12,132.06,0.7]
[1750635312571,25.57444308,132.12,132.06,0.7]
[1750635312774,5.90921742,132.14,132.08,26.0]
[1750635312956,42.22395665,132.15,132.08,26.0]
[1750635313149,42.22395665,132.15,132.09,0.7]
[1750635313352,47.84744235,132.15,132.09,0.7]
[1750635314375,53.94899727,132.15,132.09,0.7]
[1750635316555,9.3491513,132.14,132.06,0.7]
[1750635316881,0.68,132.12,132.06,0.7]
[1750635317057,18.685561,132.12,132.06,0.7]
[1750635317859,9.3364097,132.11,132.05,18.64964886]
[1750635318262,18.005561,132.11,132.04,35.3787674]
[1750635318479,18.005561,132.11,132.04,9.3787674]
[1750635318480,10.1215283,132.1,132.04,9.3787674]
[1750635319383,18.777938,132.1,132.05,26.0]
[1750635320266,18.097938,132.1,132.05,26.0]
[1750635320456,0.68,132.09,132.05,26.0]
[1750635320659,0.68,132.09,132.04,9.3787674]
[1750635320660,18.777938,132.1,132.04,1.6387674]
[1750635320856,18.777938,132.1,131.99,7.04]
[1750635320857,26.0,132.05,131.99,7.04]
[1750635321084,0.68,132.03,131.95,9.8191]
[1750635321382,18.685561,132.03,131.95,9.8191]